bitfinex/quotes_SOLUSD_20250819
["timestamp","ask_amount","ask_price","bid_price","bid_amount"]
[1755574642409,8.60291783,181.02,180.98,0.03]
[1755574642594,43.2,181.02,180.98,7.96291783]
[1755574642802,43.2,181.02,180.98,8.65291783]
[1755574643211,43.2,181.02,180.98,0.03]
[1755574643417,0.67,181.01,180.98,0.03]
[1755574643886,8.60291783,181.0,180.98,0.03]
[1755574644805,8.60291783,180.99,180.98,0.03]
[1755574645007,34.7450794,180.99,180.98,0.03]
[1755574646212,26.81216157,180.99,180.98,0.03]
[1755574646525,0.67,181.02,180.98,0.03]
[1755574646714,43.18,180.99,180.98,0.03]
[1755574647118,51.78291783,180.99,180.98,0.03]
[1755574647718,51.11291783,180.99,180.98,0.03]
[1755574648023,51.78291783,180.99,180.98,0.03]
[1755574648722,51.11291783,180.99,180.98,0.03]
[1755574649502,51.9250794,180.99,180.98,0.03]
[1755574649706,71.03019968,180.99,180.98,0.03]
[1755574649923,66.6968837,180.99,180.98,0.03]
[1755574650226,74.62980153,180.99,180.98,0.03]
[1755574652302,66.6968837,180.99,180.98,0.03]
[1755574652498,59.52358596,180.99,180.98,0.03]
[1755574653303,74.62980153,180.99,180.98,0.03]
[1755574653928,15.24837714,180.98,180.97,0.03]
[1755574654226,31.44980153,180.98,180.97,0.03]
[1755574654598,31.44980153,180.98,180.96,0.03]
[1755574654809,75.14980153,180.97,180.96,0.03]
[1755574655204,15.24837714,180.96,180.95,0.03]
[1755574655407,39.38271936,180.96,180.95,0.03]
[1755574655638,39.38271936,180.96,180.94,0.03]
[1755574655835,60.02358596,180.95,180.94,0.03]
[1755574656206,26.0,180.93,180.82,7.93291783]
[1755574656423,26.0,180.89,180.81,0.1]
[1755574656615,8.0750794,180.82,180.81,0.1]
[1755574656817,55.71398411,180.82,180.81,0.1]
[1755574657032,81.71398411,180.82,180.81,0.1]
[1755574657205,64.50355768,180.82,180.81,0.1]
[1755574657703,64.48594206,180.82,180.81,0.1]
[1755574658101,63.81594206,180.82,180.81,0.1]
[1755574658299,26.0,180.78,180.77,0.86712098]
[1755574658535,77.51291783,180.78,180.77,0.86712098]
[1755574658847,69.58,180.78,180.77,0.86712098]
[1755574659141,0.14216157,180.78,180.77,0.86712098]
[1755574659303,51.53291783,180.78,180.77,0.86712098]
[1755574659499,0.71,180.86,180.77,15.00192241]
[1755574659704,7.93291783,180.83,180.78,0.67]
[1755574659909,43.56,180.82,180.78,8.60291783]
[1755574660205,43.56,180.81,180.79,0.67]
[1755574660405,43.56,180.81,180.8,0.67]
[1755574661644,15.10621557,180.92,180.8,14.13389128]
[1755574661812,7.93291783,180.87,180.82,7.93291783]
[1755574662017,43.6,180.87,180.83,0.67]
[1755574662236,43.6,180.87,180.84,0.67]
[1755574662237,7.93291783,180.86,180.84,0.67]
[1755574662528,43.6,180.87,180.85,0.67]
[1755574663102,43.6,180.87,180.86,0.67]
[1755574663514,40.55,180.93,180.86,8.60291783]
[1755574663726,4.5042935,181.01,180.9,7.93291783]
[1755574663912,7.93291783,180.94,180.91,0.67]
[1755574664124,51.47291783,180.94,180.91,0.67]
[1755574664328,43.54,180.94,180.91,0.67]
[1755574664508,43.54,180.94,180.92,0.67]
[1755574665057,8.64291783,180.93,180.75,37.66123079]
[1755574665211,26.0,180.9,180.83,0.67]
[1755574665417,44.75,180.89,180.81,0.67]
[1755574665612,0.14216157,180.88,180.81,0.67]
[1755574665826,7.93291783,180.84,180.81,0.67]
[1755574666012,7.93291783,180.84,180.78,5.53129019]
[1755574666214,44.02,180.86,180.78,5.53157525]
[1755574666438,7.93291783,180.83,180.79,0.67]
[1755574666756,7.93291783,180.85,180.8,0.67]
[1755574666918,44.02,180.86,180.81,0.67]
[1755574667122,7.93291783,180.84,180.81,0.67]
[1755574667528,7.93291783,180.84,180.78,13.46449308]
[1755574667529,44.02,180.86,180.82,0.67]
[1755574667735,51.95291783,180.86,180.83,0.67]
[1755574668044,51.95291783,180.86,180.78,5.53157525]
[1755574668045,23.74913357,180.94,180.84,8.60291783]
[1755574668348,23.74913357,180.94,180.85,0.67]
[1755574668349,7.93291783,180.9,180.85,0.67]
[1755574668532,3.96390507,180.89,180.85,0.67]
[1755574668733,3.96390507,180.88,180.86,0.67]
[1755574669050,3.96390507,180.87,180.86,0.67]
[1755574669354,3.96390507,180.87,180.85,7.93291783]
[1755574669649,51.89291783,180.91,180.85,7.93291783]
[1755574669835,3.96119117,180.9,180.86,0.67]
[1755574670023,3.96119117,180.9,180.85,13.46224265]
[1755574670024,3.96119117,180.89,180.87,0.67]
[1755574670222,3.96119117,180.88,180.87,7.93291783]
[1755574670421,3.96119117,180.88,180.86,7.93291783]
[1755574670628,51.89291783,180.91,180.87,0.67]
[1755574670840,3.96260637,180.9,180.87,0.67]
[1755574671139,3.96260637,180.89,180.87,0.67]
[1755574671341,3.96260637,180.88,180.87,0.67]
[1755574671717,3.96260637,180.88,180.87,6.19883286]
[1755574671930,3.96260637,180.88,180.87,14.13175069]
[1755574672520,13.3794718,180.92,180.88,15.10621557]
[1755574672743,13.3794718,180.92,180.91,7.93291783]
[1755574672946,13.3794718,180.92,180.91,8.60291783]
[1755574673147,17.34467402,180.92,180.91,8.60291783]
[1755574673346,0.06,180.93,180.91,8.60291783]
[1755574673519,0.06,180.93,180.92,14.13022271]
[1755574674551,0.06,180.93,180.92,29.23643828]
[1755574675124,0.06,180.93,180.92,32.71675986]
[1755574675732,0.06,180.93,180.92,20.63352045]
[1755574675939,0.06,180.93,180.85,40.34255058]
[1755574676126,11.41323941,180.91,180.86,15.77621557]
[1755574676340,11.47323941,180.93,180.88,11.41323941]
[1755574676560,0.06,180.93,180.89,0.67]
[1755574676718,11.47323941,180.93,180.89,0.67]
[1755574676923,4.68826643,180.92,180.85,26.67]
[1755574677151,15.39150584,180.91,180.85,0.67]
[1755574677359,3.97826643,180.9,180.85,12.08323941]
[1755574677520,3.97826643,180.89,180.86,0.67]
[1755574677724,11.41323941,180.9,180.86,0.67]
[1755574677928,3.9831373,180.89,180.86,0.67]
[1755574678149,3.9831373,180.88,180.86,6.19910915]
[1755574678473,4.03694411,180.93,180.87,0.67]
[1755574678474,3.64478254,180.93,180.87,0.67]
[1755574678656,11.41323941,180.9,180.84,5.52949215]
[1755574678830,15.40177729,180.89,180.84,5.52949215]
[1755574679031,3.64478254,180.93,180.85,11.41323941]
[1755574679032,3.98853788,180.88,180.85,11.41323941]
[1755574679247,3.98853788,180.87,180.86,0.67]
[1755574679554,3.98853788,180.87,180.85,0.67]
[1755574679865,3.98853788,180.86,180.85,0.67]
[1755574680026,3.98853788,180.86,180.85,6.19944429]
[1755574680227,3.98853788,180.86,180.85,17.6126837]
[1755574680448,3.58478254,180.92,180.86,15.10621557]
[1755574680655,3.99649419,180.91,180.9,11.41323941]
[1755574681032,3.99649419,180.91,180.9,0.67]
[1755574681337,3.99649419,180.91,180.88,11.41323941]
[1755574681537,3.99649419,180.9,180.88,0.67]
[1755574681834,0.06,180.93,180.89,0.67]
[1755574682029,3.99740458,180.92,180.89,6.19805989]
[1755574682249,3.99740458,180.91,180.89,6.19805989]
[1755574682437,3.99740458,180.9,180.89,23.10739647]
[1755574682749,3.99740458,180.9,180.89,23.77739647]
[1755574683233,3.99740458,180.9,180.89,5.52805989]
[1755574684149,3.9982191,180.9,180.89,0.67]
[1755574684337,3.9982191,180.9,180.89,33.35555215]
[1755574684531,0.06,180.93,180.9,15.10621557]
[1755574684736,0.06,180.93,180.92,17.57933658]
[1755574685370,0.06,180.93,180.92,18.24933658]
[1755574685678,0.06,181.03,180.93,41.10621557]
[1755574685828,3.60174312,181.02,180.99,17.57933658]
[1755574686360,0.06,181.03,180.91,0.67]
[1755574686361,17.57933658,181.0,180.91,0.67]
[1755574686661,17.57933658,180.97,180.91,44.24933658]
[1755574687333,17.57933658,180.98,180.92,17.57933658]
[1755574687865,17.57933658,180.98,180.91,26.67]
[1755574688043,21.18037254,180.97,180.92,17.57933658]
[1755574688256,17.57933658,180.97,180.92,0.69]
[1755574688451,0.71,180.99,180.92,18.26933658]
[1755574688750,0.71,180.99,180.95,17.57933658]
[1755574688751,3.60227454,180.99,180.95,17.57933658]
[1755574688957,61.69933658,181.02,180.96,18.26933658]
[1755574689172,17.57933658,181.0,180.95,17.57933658]
[1755574689478,18.25933658,181.0,180.95,17.57933658]
[1755574689651,17.57933658,180.98,180.93,0.69]
[1755574689842,17.57933658,180.95,180.89,5.5281823]
[1755574690045,17.57933658,180.94,180.88,5.5285272]
[1755574690265,17.57933658,180.94,180.88,23.10786378]
[1755574690546,17.57933658,180.93,180.88,23.10786378]
[1755574690963,0.68,180.95,180.88,6.2185272]
[1755574691465,17.57933658,180.94,180.88,23.79786378]
[1755574692147,17.57933658,180.93,180.91,26.0]
[1755574692582,0.68,180.95,180.91,26.0]
[1755574692741,17.57933658,180.93,180.91,26.0]
[1755574692946,18.25933658,180.92,180.85,0.69]
[1755574693146,0.68,180.91,180.83,44.79]
[1755574693381,0.68,180.91,180.81,0.03]
[1755574693382,4.28494041,180.91,180.81,0.03]
[1755574693592,26.0,180.87,180.79,0.03]
[1755574693794,0.14216157,180.82,180.79,0.03]
[1755574694097,0.14216157,180.8,180.79,0.03]
[1755574694256,22.00643856,180.8,180.79,0.03]
[1755574694457,0.14216157,180.8,180.79,0.03]
[1755574694772,45.44499542,180.81,180.79,0.03]
[1755574694946,0.68,180.82,180.79,0.03]
[1755574695148,0.68,180.8,180.79,0.03]
[1755574695582,26.68,180.8,180.79,0.03]
[1755574695873,30.28429951,180.8,180.79,0.03]
[1755574696090,44.25933658,180.8,180.79,0.03]
[1755574696269,45.38996572,180.8,180.79,0.03]
[1755574696456,49.3920042,180.8,180.79,0.03]
[1755574696781,81.2679502,180.8,180.79,0.03]
[1755574697084,4.00203848,180.8,180.79,0.03]
[1755574697288,47.54,180.84,180.79,0.03]
[1755574697457,4.00355505,180.83,180.8,17.57933658]
[1755574697653,46.86,180.86,180.81,0.69]
[1755574697849,17.57933658,180.84,180.79,0.03]
[1755574698352,4.28376313,180.83,180.79,0.03]
[1755574698570,17.57933658,180.8,180.79,0.03]
[1755574698773,21.32526128,180.8,180.79,0.03]
[1755574699081,4.4259247,180.8,180.79,0.03]
[1755574699246,22.00526128,180.8,180.79,0.03]
[1755574699454,21.18309971,180.8,180.79,0.03]
[1755574699953,7.60417346,180.8,180.79,0.03]
[1755574700157,3.60376313,180.81,180.79,0.03]
[1755574700363,3.60376313,180.81,180.79,18.29933658]
[1755574700566,4.5042935,180.85,180.8,18.26933658]
[1755574700567,46.8,180.85,180.8,18.26933658]
[1755574700752,17.57933658,180.81,180.79,0.03]
[1755574700959,3.60137959,180.8,180.79,0.03]
[1755574701181,3.60137959,180.82,180.79,0.03]
[1755574701362,150.27933658,180.81,180.79,0.03]
[1755574701674,3.60137959,180.8,180.79,0.03]
[1755574701853,150.27933658,180.81,180.79,0.03]
[1755574702366,132.7,180.81,180.79,12.28571688]
[1755574702592,179.5,180.85,180.8,12.94571688]
[1755574702759,3.6001322,180.84,180.81,0.69]
[1755574703250,3.6001322,180.84,180.81,12.94571688]
[1755574703452,3.6001322,180.84,180.81,0.69]
[1755574703692,12.25571688,180.82,180.79,0.03]
[1755574703864,3.6001322,180.83,180.79,0.03]
[1755574704061,12.25571688,180.83,180.79,0.03]
[1755574704385,21.19975362,180.83,180.79,0.03]
[1755574704562,17.59962142,180.81,180.79,0.03]
[1755574704759,0.68,180.83,180.79,0.03]
[1755574704976,17.59962142,180.81,180.79,0.03]
[1755574705480,0.68,180.83,180.79,0.03]
[1755574705779,3.60189996,180.84,180.79,5.56127879]
[1755574705965,3.60189996,180.83,180.8,0.69]
[1755574706166,3.60189996,180.84,180.8,0.69]
[1755574706473,3.60289097,180.84,180.79,0.03]
[1755574706662,3.60289097,180.84,180.8,0.69]
[1755574706860,21.20251239,180.84,180.79,5.56112034]
[1755574707062,21.20251239,180.83,180.79,0.03]
[1755574707263,17.59962142,180.84,180.79,0.03]
[1755574707486,3.60263274,180.83,180.79,0.03]
[1755574707796,3.60263274,180.83,180.79,6.25115544]
[1755574707998,3.60263274,180.84,180.79,6.25115544]
[1755574708170,21.20225416,180.84,180.79,6.25115544]
[1755574708374,3.60263274,180.83,180.79,6.25115544]
[1755574708908,0.06,180.86,180.82,17.59962142]
[1755574709108,0.06,180.86,180.85,17.59962142]
[1755574709459,0.06,180.86,180.85,18.28962142]
[1755574710569,0.06,180.86,180.85,15.79621557]
[1755574710775,0.06,180.86,180.85,39.06744285]
[1755574710979,1e-08,180.86,180.85,39.06744285]
[1755574711491,1e-08,180.87,180.86,15.24837714]
[1755574711791,1e-08,180.87,180.86,33.53799856]
[1755574712267,1e-08,180.87,180.86,79.87799856]
[1755574712464,1e-08,180.87,180.86,62.27837714]
[1755574712696,1e-08,180.87,180.86,33.53799856]
[1755574712870,1e-08,180.87,180.86,39.06713712]
[1755574713564,1e-08,180.89,180.88,26.14216157]
[1755574713763,1e-08,180.89,180.88,43.74178299]
[1755574713960,1e-08,180.89,180.88,44.43178299]
[1755574714885,1e-08,180.89,180.88,49.96031019]
[1755574715597,1e-08,180.89,180.88,96.10031019]
[1755574716887,1e-08,180.89,180.88,96.06031019]
[1755574717198,1e-08,180.89,180.88,5.5285272]
[1755574717490,1e-08,180.89,180.88,23.12814862]
[1755574717662,13.89668944,180.96,180.89,15.10621557]
[1755574717861,0.06,180.97,180.93,15.10621557]
[1755574718101,0.67,180.96,180.9,0.69]
[1755574718307,4.27675096,180.96,180.91,17.59962142]
[1755574718508,4.27675096,180.96,180.92,17.59962142]
[1755574718679,0.67,180.96,180.91,17.59962142]
[1755574718876,4.27675096,180.96,180.91,5.52761041]
[1755574719093,18.26962142,180.95,180.89,23.12754104]
[1755574719292,18.26962142,180.95,180.9,17.59962142]
[1755574719513,0.67,180.95,180.9,17.59962142]
[1755574719885,0.67,180.95,180.89,5.52791962]
[1755574720087,4.27501582,180.95,180.9,17.59962142]
[1755574720468,0.06,180.97,180.89,5.52791962]
[1755574720469,0.06,180.97,180.94,17.59962142]
[1755574720675,0.06,180.97,180.95,17.59962142]
[1755574720915,0.06,180.97,180.93,17.59962142]
[1755574721104,0.06,180.97,180.92,20.63352045]
[1755574721279,0.06,180.97,180.93,17.59962142]
[1755574721473,0.67,180.96,180.87,0.69]
[1755574721669,17.59962142,180.94,180.88,17.59962142]
[1755574722278,0.06,180.97,180.86,17.59962142]
[1755574722279,0.67,180.93,180.86,17.59962142]
[1755574722509,0.67,180.93,180.85,46.63565986]
[1755574722510,17.59962142,180.9,180.84,6.21969756]
[1755574722708,17.59962142,180.87,180.83,0.03]
[1755574722890,17.59962142,180.88,180.83,0.03]
[1755574723101,18.26962142,180.87,180.83,0.03]
[1755574723590,0.67,180.87,180.83,0.03]
[1755574725088,17.59962142,180.88,180.83,0.03]
[1755574725596,18.26962142,180.88,180.83,0.03]
[1755574726120,17.59962142,180.85,180.83,0.03]
[1755574726724,17.59962142,180.84,180.83,0.03]
[1755574726922,17.59962142,180.85,180.83,0.03]
[1755574727221,17.59962142,180.86,180.83,0.03]
[1755574727590,17.59962142,180.85,180.83,0.03]
[1755574727932,18.26962142,180.86,180.83,0.03]
[1755574728396,12.91908457,180.86,180.83,0.03]
[1755574731902,0.67,180.86,180.83,0.03]
[1755574732200,12.24908457,180.86,180.83,0.03]
[1755574732528,12.91908457,180.86,180.83,0.03]
[1755574733101,132.7,180.85,180.83,0.03]
[1755574733514,132.7,180.85,180.84,12.93908457]
[1755574733920,132.7,180.85,180.84,0.69]
[1755574734296,132.7,180.85,180.83,0.03]
[1755574735025,132.7,180.85,180.83,12.27908457]
[1755574735412,132.7,180.85,180.84,5.52975005]
[1755574739310,132.7,180.85,180.83,17.80914042]
[1755574739505,132.7,180.85,180.83,18.49914042]
[1755574740694,132.7,180.85,180.83,5.56005585]
[1755574741103,132.7,180.85,180.83,0.03]
[1755574741608,133.37,180.85,180.83,0.03]
[1755574741927,132.7,180.85,180.83,0.03]
[1755574742136,0.67,180.84,180.83,0.03]
[1755574742304,12.91908457,180.84,180.83,0.03]
[1755574742727,16.52894436,180.84,180.83,0.03]
[1755574742943,61.62894436,180.84,180.83,0.03]
[1755574743105,65.64049089,180.84,180.83,0.03]
[1755574744102,91.78265246,180.84,180.83,0.03]
[1755574744511,65.78265246,180.84,180.83,0.03]
[1755574746517,53.53433351,180.84,180.83,0.03]
[1755574746725,65.78341808,180.84,180.83,0.03]
[1755574747618,53.53433351,180.84,180.83,0.03]
[1755574747824,65.78341808,180.84,180.83,0.03]
[1755574749531,65.78372612,180.84,180.83,0.03]
[1755574749914,85.39641889,180.84,180.83,0.03]
[1755574750119,41.10621557,180.82,180.81,0.03]
[1755574750442,15.24837714,180.81,180.79,0.03]
[1755574750748,64.63156455,180.8,180.79,0.03]
[1755574750928,80.55994169,180.8,180.79,0.03]
[1755574752239,85.11182651,180.8,180.79,0.03]
[1755574752949,72.86274194,180.8,180.79,0.03]
[1755574753244,89.62407868,180.8,180.79,0.03]
[1755574753438,53.49746171,180.78,180.77,0.89712098]
[1755574753610,105.75994169,180.78,180.77,0.89712098]
[1755574753814,110.9459828,180.78,180.77,0.89712098]
[1755574754924,106.43994169,180.78,180.77,0.89712098]
[1755574755417,106.42903551,180.78,180.77,0.89712098]
[1755574756214,106.42903551,180.78,180.75,0.03]
[1755574756215,15.24837714,180.77,180.75,0.03]
[1755574756523,35.10903551,180.76,180.75,0.03]
[1755574756727,80.32903551,180.76,180.75,0.03]
[1755574758041,26.0,180.72,180.66,0.7]
[1755574758247,12.24908457,180.67,180.66,0.7]
[1755574758455,44.7,180.67,180.66,0.7]
[1755574760260,44.66,180.69,180.66,18.48407828]
[1755574760424,44.6,180.7,180.66,17.78407828]
[1755574760617,44.6,180.7,180.67,0.7]
[1755574761151,215.52908457,180.71,180.67,0.7]
[1755574761354,12.24908457,180.69,180.65,0.7]
[1755574761551,56.80908457,180.68,180.65,0.7]
[1755574761738,56.80908457,180.68,180.65,6.23556204]
[1755574761739,44.56,180.68,180.65,6.23556204]
[1755574762075,44.56,180.68,180.66,0.7]
[1755574762362,44.56,180.69,180.66,0.7]
[1755574762522,56.80908457,180.69,180.67,0.7]
[1755574763159,44.56,180.69,180.68,0.7]
[1755574763521,56.80908457,180.69,180.65,0.7]
[1755574763758,12.24908457,180.68,180.66,0.7]
[1755574764070,44.56,180.69,180.67,0.7]
[1755574764239,12.24908457,180.68,180.67,0.7]
[1755574764549,12.24908457,180.68,180.65,0.7]
[1755574764925,12.24908457,180.68,180.63,5.53616681]
[1755574764926,44.52,180.68,180.66,0.7]
[1755574765135,56.76908457,180.68,180.66,0.7]
[1755574765523,44.52,180.68,180.66,0.7]
[1755574765718,132.7,180.67,180.63,17.78525138]
[1755574765948,132.7,180.66,180.64,12.24908457]
[1755574766158,132.7,180.66,180.65,12.94908457]
[1755574766336,132.7,180.66,180.65,0.7]
[1755574767630,132.7,180.66,180.65,18.48465058]
[1755574767827,132.7,180.66,180.65,0.7]
[1755574767828,12.24908457,180.66,180.65,0.7]
[1755574768027,56.70908457,180.67,180.65,0.7]
[1755574768225,44.46,180.67,180.65,0.7]
[1755574768434,44.46,180.67,180.65,5.53556307]
[1755574768643,56.70908457,180.67,180.63,5.53617892]
[1755574768841,56.70908457,180.67,180.65,0.7]
[1755574770345,56.70908457,180.67,180.63,6.23617892]
[1755574770552,44.46,180.67,180.64,0.7]
[1755574771025,56.70908457,180.67,180.64,0.7]
[1755574772235,44.46,180.67,180.64,6.2358012]
[1755574772553,44.46,180.67,180.64,0.7]
[1755574772733,12.24908457,180.66,180.64,0.7]
[1755574772934,44.46,180.67,180.64,0.7]
[1755574773259,56.70908457,180.67,180.64,0.73]
[1755574773430,44.46,180.67,180.64,5.56587218]
[1755574773630,44.46,180.67,180.64,6.26587218]
[1755574773852,56.70908457,180.67,180.64,6.26587218]
[1755574774344,51.939837,180.67,180.64,6.26587218]
[1755574774544,132.7,180.66,180.64,6.26587218]
[1755574776063,132.7,180.66,180.65,0.7]
[1755574776666,132.7,180.66,180.64,0.03]
[1755574776862,4.49679779,180.75,180.65,8.179837]
[1755574777071,4.49679779,180.75,180.64,0.03]
[1755574777072,33.479837,180.73,180.68,7.479837]
[1755574777252,48.27427564,180.72,180.68,0.7]
[1755574777445,3.994932,180.71,180.68,0.7]
[1755574777652,11.474769,180.71,180.66,8.179837]
[1755574777952,8.189837,180.71,180.66,8.179837]
[1755574778156,3.9944487,180.7,180.67,8.139837]
[1755574778389,44.28,180.72,180.68,8.139837]
[1755574778542,44.28,180.72,180.67,7.479837]
[1755574778741,44.28,180.72,180.68,6.19464688]
[1755574779173,44.28,180.72,180.69,0.66]
[1755574779590,7.479837,180.76,180.71,7.479837]
[1755574779790,7.479837,180.76,180.68,45.3712641]
[1755574780076,44.24,180.78,180.72,0.66]
[1755574780241,3.99938446,180.77,180.73,7.479837]
[1755574780447,3.99938446,180.77,180.74,0.66]
[1755574780670,4.0028578,180.76,180.73,5.53311569]
[1755574780842,57.18959905,180.75,180.69,0.66]
[1755574781041,16.2620511,180.74,180.69,12.91959905]
[1755574781245,12.25959905,180.74,180.69,18.45393963]
[1755574781469,12.25959905,180.74,180.65,0.66]
[1755574781470,12.25959905,180.7,180.65,0.66]
[1755574781651,12.25959905,180.69,180.65,5.53553339]
[1755574781972,12.96959905,180.69,180.65,5.53553339]
[1755574782392,44.2,180.7,180.65,5.53553339]
[1755574782552,4.00543103,180.69,180.65,5.53553339]
[1755574782752,12.25959905,180.69,180.65,6.19553339]
[1755574783289,15.86680719,180.69,180.65,6.19553339]
[1755574783668,3.60720814,180.69,180.65,6.19553339]
[1755574783863,56.45959905,180.7,180.65,6.19553339]
[1755574784055,16.26743616,180.69,180.65,6.19553339]
[1755574784255,15.86912262,180.69,180.65,6.19553339]
[1755574784805,4.01041861,180.68,180.64,5.56579269]
[1755574784956,15.86912262,180.69,180.64,5.56579269]
[1755574784957,3.60952357,180.69,180.66,0.66]
[1755574785650,0.71,180.68,180.64,0.03]
[1755574785889,12.25959905,180.67,180.64,0.03]
[1755574786072,12.25959905,180.68,180.64,0.69]
[1755574786462,12.25959905,180.68,180.65,0.66]
[1755574786795,15.86942682,180.69,180.65,0.66]
[1755574787004,4.01315586,180.68,180.64,12.28959905]
[1755574787294,4.01315586,180.68,180.64,0.03]
[1755574787473,7.62298363,180.68,180.64,0.69]
[1755574787788,16.57942682,180.69,180.64,6.2257715]
[1755574787966,4.01651415,180.68,180.64,18.48537055]
[1755574788167,7.62634192,180.68,180.65,0.66]
[1755574788367,15.86942682,180.69,180.65,0.66]
[1755574788567,4.01810663,180.68,180.65,0.66]
[1755574788878,4.01810663,180.67,180.66,0.66]
[1755574789076,4.01810663,180.68,180.66,0.66]
[1755574789283,4.01810663,180.67,180.65,5.53549898]
[1755574789474,3.60982777,180.69,180.66,12.25959905]
[1755574789779,4.02021614,180.68,180.67,0.66]
[1755574789988,43.88,180.72,180.67,12.25959905]
[1755574790176,7.6391488,180.71,180.67,12.25959905]
[1755574790487,6.32020687,180.78,180.7,12.25959905]
[1755574790658,7.64353626,180.75,180.72,12.25959905]
[1755574790857,7.64353626,180.75,180.72,17.79296789]
[1755574790858,4.02282581,180.74,180.72,17.79296789]
[1755574791073,4.02282581,180.73,180.72,6.19336884]
[1755574791279,3.68071045,180.75,180.72,6.19336884]
[1755574791487,4.0248912,180.74,180.72,6.19336884]
[1755574791781,4.0248912,180.73,180.72,6.19336884]
[1755574791995,4.02478227,180.73,180.71,5.53370811]
[1755574792176,4.02631719,180.72,180.71,6.19370811]
[1755574792483,3.62071045,180.74,180.71,6.19370811]
[1755574792691,3.62071045,180.74,180.71,0.66]
[1755574792692,4.02621397,180.73,180.71,0.66]
[1755574792875,3.62071045,180.74,180.71,0.66]
[1755574793195,4.02621286,180.73,180.71,6.19368041]
[1755574793409,4.02621286,180.72,180.68,0.66]
[1755574793588,4.02716004,180.71,180.68,12.91959905]
[1755574793768,3.62071045,180.72,180.68,12.91959905]
[1755574793963,4.02722286,180.71,180.68,12.25959905]
[1755574794274,3.62071045,180.72,180.7,12.25959905]
[1755574794465,4.02988677,180.71,180.7,12.91959905]
[1755574794874,4.02988677,180.71,180.7,18.45361852]
[1755574795200,4.02988677,180.71,180.7,6.19401947]
[1755574795575,3.62071045,180.73,180.7,6.19401947]
[1755574795576,3.62071045,180.72,180.7,6.19401947]
[1755574795787,3.62071045,180.74,180.7,6.19401947]
[1755574795994,7.65221603,180.73,180.7,6.19401947]
[1755574796296,4.03150558,180.72,180.7,6.19401947]
[1755574796501,3.62071045,180.73,180.7,6.19401947]
[1755574796683,4.03194318,180.72,180.7,6.19401947]
[1755574796886,3.62071045,180.73,180.7,6.19401947]
[1755574797085,4.03218358,180.72,180.7,6.19401947]
[1755574797291,3.62071045,180.73,180.7,0.66]
[1755574797493,4.03252738,180.72,180.7,0.66]
[1755574797690,3.62071045,180.73,180.71,12.91959905]
[1755574797893,3.68071045,180.75,180.72,12.91959905]
[1755574798189,4.03258238,180.74,180.73,12.91959905]
[1755574798498,4.03258238,180.74,180.71,0.66]
[1755574798678,3.68922772,180.75,180.72,0.66]
[1755574799176,4.03136734,180.74,180.69,26.66]
[1755574799394,16.29055673,180.73,180.69,0.66]
[1755574799604,132.76,180.75,180.65,16.635705]
[1755574799605,77.8501854,180.72,180.65,16.635705]
[1755574799811,26.0,180.68,180.64,0.03]
[1755574799987,12.25959905,180.65,180.64,0.03]
[1755574800179,3.62922772,180.66,180.64,0.03]
[1755574800375,16.28884956,180.65,180.64,0.03]
[1755574800776,4.73925051,180.65,180.64,0.03]
[1755574801108,20.62797199,180.65,180.64,0.03]
[1755574801408,8.368344,180.65,180.64,0.03]
[1755574801578,16.28871533,180.65,180.64,0.03]
[1755574801769,4.02911628,180.65,180.64,0.03]
[1755574801972,16.28871533,180.65,180.64,0.03]
[1755574802216,4.02911628,180.65,180.64,0.03]
[1755574802704,4.02873717,180.65,180.64,0.03]
[1755574803010,16.28833622,180.65,180.64,0.03]
[1755574803188,4.02873717,180.65,180.64,0.03]
[1755574803387,3.62922772,180.66,180.64,0.03]